[Event "*** Titled Tuesday Blitz"]
[Site "Chess.com"]
[Date "2020.04.14"]
[Round "8"]
[White "Saloni1299"]
[Black "Witaliss"]
[Result "0-1"]
[WhiteElo "2239"]
[BlackElo "2423"]
[TimeControl "180+1"]
[EndTime "11:27:57 PDT"]
[Termination "Witaliss won by resignation"]

1. e4 {[%clk 0:03:00.9]} 1... c6 {[%clk 0:02:59.8]} 2. d4 {[%clk 0:02:58.3]}
2... d5 {[%clk 0:02:59.8]} 3. e5 {[%clk 0:02:58.5]} 3... Bf5 {[%clk 0:02:59.2]}
4. h4 {[%clk 0:02:57.9]} 4... c5 {[%clk 0:02:58.6]} 5. dxc5 {[%clk 0:02:55.7]}
5... Nc6 {[%clk 0:02:58.5]} 6. Nf3 {[%clk 0:02:55.9]} 6... e6 {[%clk 0:02:55.2]}
7. Be3 {[%clk 0:02:54.8]} 7... Bg4 {[%clk 0:02:48.7]} 8. Bb5 {[%clk 0:02:46.7]}
8... Qa5+ {[%clk 0:02:42.8]} 9. Nc3 {[%clk 0:02:45.9]} 9... O-O-O {[%clk
0:02:42.4]} 10. Bxc6 {[%clk 0:02:38.6]} 10... bxc6 {[%clk 0:02:41.7]} 11. Qd4
{[%clk 0:02:29.8]} 11... Bxf3 {[%clk 0:02:40.6]} 12. gxf3 {[%clk 0:02:30.2]}
12... Ne7 {[%clk 0:02:39.2]} 13. b4 {[%clk 0:02:30.2]} 13... Qc7 {[%clk
0:02:34.3]} 14. f4 {[%clk 0:02:25.2]} 14... Nf5 {[%clk 0:02:33.4]} 15. Qd3
{[%clk 0:02:25.2]} 15... f6 {[%clk 0:02:28.4]} 16. Bd4 {[%clk 0:02:20.9]} 16...
Be7 {[%clk 0:02:23.9]} 17. a4 {[%clk 0:02:12.5]} 17... Rhf8 {[%clk 0:02:21.2]}
18. b5 {[%clk 0:02:11.6]} 18... Nxd4 {[%clk 0:02:19.1]} 19. Qxd4 {[%clk
0:02:10]} 19... fxe5 {[%clk 0:02:18]} 20. fxe5 {[%clk 0:02:10.1]} 20... Rf5
{[%clk 0:02:17.4]} 21. f4 {[%clk 0:02:00.5]} 21... cxb5 {[%clk 0:02:11.4]} 22.
Nxb5 {[%clk 0:01:53.8]} 22... Bxc5 {[%clk 0:02:03]} 23. Qc3 {[%clk 0:01:52.4]}
23... Qb6 {[%clk 0:01:51.3]} 24. Nd6+ {[%clk 0:01:49.8]} 24... Rxd6 {[%clk
0:01:48.5]} 25. exd6 {[%clk 0:01:49.4]} 25... Qb4 {[%clk 0:01:39.6]} 26. Qxb4
{[%clk 0:01:41.1]} 26... Bxb4+ {[%clk 0:01:39.6]} 27. Ke2 {[%clk 0:01:40.2]}
27... Rxf4 {[%clk 0:01:39.7]} 28. d7+ {[%clk 0:01:36.6]} 28... Kxd7 {[%clk
0:01:38.7]} 29. Rab1 {[%clk 0:01:37.3]} 29... a5 {[%clk 0:01:36.2]} 30. Rhg1
{[%clk 0:01:32.8]} 30... g6 {[%clk 0:01:34.3]} 31. h5 {[%clk 0:01:31.3]} 31...
gxh5 {[%clk 0:01:33.6]} 32. Rg7+ {[%clk 0:01:31.1]} 32... Kd6 {[%clk 0:01:33.3]}
33. Rxh7 {[%clk 0:01:31.7]} 33... h4 {[%clk 0:01:31.6]} 34. Rh1 {[%clk
0:01:30.3]} 34... Rc4 {[%clk 0:01:29.4]} 35. Kd1 {[%clk 0:01:28.5]} 35... Rd4+
{[%clk 0:01:22.3]} 36. Kc1 {[%clk 0:01:26.4]} 36... Bd2+ {[%clk 0:01:21.7]} 37.
Kb1 {[%clk 0:01:21.5]} 37... Rxa4 {[%clk 0:01:14.4]} 38. R1xh4 {[%clk
0:01:21.4]} 38... d4 {[%clk 0:01:13.9]} 39. Rh8 {[%clk 0:01:18.4]} 39... Bc3
{[%clk 0:01:12.7]} 40. Rd8+ {[%clk 0:01:17.2]} 40... Ke7 {[%clk 0:01:09.4]} 0-1

[Event "*** Titled Tuesday Blitz"]
[Site "Chess.com"]
[Date "2020.04.14"]
[Round "8"]
[White "vladimirdamjanovic"]
[Black "zmeeed67"]
[Result "1-0"]
[WhiteElo "2542"]
[BlackElo "2389"]
[TimeControl "180+1"]
[EndTime "11:28:06 PDT"]
[Termination "vladimirdamjanovic won by resignation"]

1. d4 {[%clk 0:03:00.9]} 1... d5 {[%clk 0:02:53.6]} 2. c4 {[%clk 0:02:59.7]}
2... e6 {[%clk 0:02:53.3]} 3. Nc3 {[%clk 0:02:59]} 3... c6 {[%clk 0:02:52.6]} 4.
Nf3 {[%clk 0:02:56.1]} 4... Nf6 {[%clk 0:02:51.6]} 5. Bg5 {[%clk 0:02:53.6]}
5... dxc4 {[%clk 0:02:49.3]} 6. e4 {[%clk 0:02:52.8]} 6... b5 {[%clk 0:02:46.4]}
7. e5 {[%clk 0:02:52]} 7... h6 {[%clk 0:02:45]} 8. Bh4 {[%clk 0:02:51.4]} 8...
g5 {[%clk 0:02:44]} 9. Nxg5 {[%clk 0:02:45.8]} 9... Nd5 {[%clk 0:02:41.8]} 10.
Nxf7 {[%clk 0:02:30.2]} 10... Qxh4 {[%clk 0:02:39.7]} 11. Nxh8 {[%clk
0:02:31.1]} 11... Bb4 {[%clk 0:02:39]} 12. Rc1 {[%clk 0:02:29.1]} 12... c5
{[%clk 0:02:37.4]} 13. dxc5 {[%clk 0:02:02.4]} 13... Qe4+ {[%clk 0:02:35.7]} 14.
Be2 {[%clk 0:02:01.8]} 14... Nf4 {[%clk 0:02:33.3]} 15. Rg1 {[%clk 0:01:45.6]}
15... Bb7 {[%clk 0:02:14]} 16. Kf1 {[%clk 0:01:41]} 16... Bxc3 {[%clk
0:01:47.5]} 17. bxc3 {[%clk 0:01:40.6]} 17... Qxe5 {[%clk 0:00:39.9]} 18. Qd8+
{[%clk 0:01:38.7]} 18... Kxd8 {[%clk 0:00:38.2]} 19. Nf7+ {[%clk 0:01:37.8]}
19... Kc7 {[%clk 0:00:37.7]} 20. Nxe5 {[%clk 0:01:38.7]} 20... Nc6 {[%clk
0:00:26.1]} 21. Nf7 {[%clk 0:01:35]} 21... Rf8 {[%clk 0:00:06.9]} 22. Nd6 {[%clk
0:01:30.6]} 22... Ne5 {[%clk 0:00:07.8]} 23. Nxb7 {[%clk 0:01:27.9]} 23... Nc6
{[%clk 0:00:08.7]} 24. Nd6 {[%clk 0:01:27.2]} 24... Ne5 {[%clk 0:00:09.6]} 25.
g3 {[%clk 0:01:26.6]} 1-0

[Event "*** Titled Tuesday Blitz"]
[Site "Chess.com"]
[Date "2020.04.14"]
[Round "8"]
[White "Olkaa"]
[Black "1g41-0"]
[Result "1-0"]
[WhiteElo "2652"]
[BlackElo "2493"]
[TimeControl "180+1"]
[EndTime "11:28:12 PDT"]
[Termination "Olkaa won by resignation"]

1. e4 {[%clk 0:03:00.9]} 1... c5 {[%clk 0:02:56.7]} 2. Nf3 {[%clk 0:03:00.9]}
2... d6 {[%clk 0:02:57]} 3. d4 {[%clk 0:03:01.1]} 3... cxd4 {[%clk 0:02:57.9]}
4. Nxd4 {[%clk 0:03:01.4]} 4... Nf6 {[%clk 0:02:58.5]} 5. Nc3 {[%clk 0:03:01.9]}
5... a6 {[%clk 0:02:58.9]} 6. Be3 {[%clk 0:03:02]} 6... e5 {[%clk 0:02:58.9]} 7.
Nb3 {[%clk 0:03:02.4]} 7... Be7 {[%clk 0:02:59]} 8. f3 {[%clk 0:03:03]} 8... Be6
{[%clk 0:02:59.5]} 9. Qd2 {[%clk 0:03:03.3]} 9... O-O {[%clk 0:02:59.7]} 10.
O-O-O {[%clk 0:03:03.8]} 10... Nbd7 {[%clk 0:02:59.3]} 11. g4 {[%clk 0:03:04]}
11... b5 {[%clk 0:02:59.9]} 12. g5 {[%clk 0:03:04.4]} 12... Nh5 {[%clk 0:02:58]}
13. Nd5 {[%clk 0:03:02.6]} 13... Bxd5 {[%clk 0:02:57.8]} 14. exd5 {[%clk
0:03:03.5]} 14... f5 {[%clk 0:02:57.7]} 15. gxf6 {[%clk 0:02:59.9]} 15... Rxf6
{[%clk 0:02:51.2]} 16. Na5 {[%clk 0:02:47.4]} 16... Qe8 {[%clk 0:02:39.8]} 17.
Nc6 {[%clk 0:02:43.5]} 17... Nf4 {[%clk 0:02:38.3]} 18. Bd3 {[%clk 0:02:36]}
18... Nf8 {[%clk 0:02:29.2]} 19. Be4 {[%clk 0:02:32.7]} 19... g6 {[%clk
0:02:27.2]} 20. h4 {[%clk 0:02:27.7]} 20... Kh8 {[%clk 0:02:26.1]} 21. h5 {[%clk
0:02:16.2]} 21... gxh5 {[%clk 0:02:18.6]} 22. Bxf4 {[%clk 0:02:04.5]} 22... Rxf4
{[%clk 0:02:17.7]} 23. Nxe7 {[%clk 0:02:04.3]} 23... Qxe7 {[%clk 0:02:18.6]} 24.
Rxh5 {[%clk 0:02:04.3]} 24... Qf7 {[%clk 0:02:03.7]} 25. Rdh1 {[%clk 0:02:00.1]}
25... a5 {[%clk 0:02:00.2]} 26. Qd3 {[%clk 0:01:28.3]} 26... Ra7 {[%clk
0:01:37.3]} 27. Qxb5 {[%clk 0:01:28.1]} 27... a4 {[%clk 0:01:33.4]} 28. Bxh7
{[%clk 0:01:06]} 28... Nxh7 {[%clk 0:01:32.4]} 29. Qb8+ {[%clk 0:01:05.3]} 29...
Qg8 {[%clk 0:01:02.5]} 30. Qxa7 {[%clk 0:01:04.3]} 30... Rf7 {[%clk 0:01:01.6]}
31. Rxh7+ {[%clk 0:00:54.9]} 31... Rxh7 {[%clk 0:00:56.3]} 32. Qxh7+ {[%clk
0:00:54.5]} 32... Qxh7 {[%clk 0:00:57.2]} 33. Rxh7+ {[%clk 0:00:54.3]} 33...
Kxh7 {[%clk 0:00:58.1]} 34. b4 {[%clk 0:00:53.3]} 34... axb3 {[%clk 0:00:53.2]}
35. cxb3 {[%clk 0:00:52.5]} 35... Kg6 {[%clk 0:00:54.1]} 36. a4 {[%clk 0:00:50]}
1-0

[Event "*** Titled Tuesday Blitz"]
[Site "Chess.com"]
[Date "2020.04.14"]
[Round "8"]
[White "SavelijTartakover"]
[Black "MarcoRiehle"]
[Result "1-0"]
[WhiteElo "2602"]
[BlackElo "2717"]
[TimeControl "180+1"]
[EndTime "11:28:18 PDT"]
[Termination "SavelijTartakover won by checkmate"]

1. d4 {[%clk 0:03:00.9]} 1... d5 {[%clk 0:00:48.1]} 2. c4 {[%clk 0:02:58]} 2...
e6 {[%clk 0:00:46.2]} 3. Nf3 {[%clk 0:02:55.1]} 3... Nf6 {[%clk 0:00:45.7]} 4.
Bg5 {[%clk 0:02:53.7]} 4... Be7 {[%clk 0:00:45.5]} 5. e3 {[%clk 0:02:51.3]} 5...
O-O {[%clk 0:00:43.8]} 6. Nc3 {[%clk 0:02:51.5]} 6... h6 {[%clk 0:00:43.6]} 7.
Bh4 {[%clk 0:02:49.7]} 7... c6 {[%clk 0:00:43.7]} 8. Qc2 {[%clk 0:02:47.7]} 8...
Nbd7 {[%clk 0:00:44]} 9. Rc1 {[%clk 0:02:47.4]} 9... b6 {[%clk 0:00:42.1]} 10.
cxd5 {[%clk 0:02:44.1]} 10... cxd5 {[%clk 0:00:43]} 11. Bd3 {[%clk 0:02:43.8]}
11... Bb7 {[%clk 0:00:42.7]} 12. O-O {[%clk 0:02:43.5]} 12... Rc8 {[%clk
0:00:42.5]} 13. Qb1 {[%clk 0:02:36.2]} 13... a6 {[%clk 0:00:38.5]} 14. h3 {[%clk
0:02:30.6]} 14... b5 {[%clk 0:00:37.9]} 15. Bg3 {[%clk 0:02:28.8]} 15... Qb6
{[%clk 0:00:35.3]} 16. Rc2 {[%clk 0:02:22.9]} 16... Ne4 {[%clk 0:00:27.3]} 17.
Bxe4 {[%clk 0:02:19]} 17... dxe4 {[%clk 0:00:27.1]} 18. Ne5 {[%clk 0:02:19.3]}
18... Nxe5 {[%clk 0:00:26.3]} 19. Bxe5 {[%clk 0:02:15.7]} 19... Bd5 {[%clk
0:00:19.3]} 20. Nxd5 {[%clk 0:02:10.6]} 20... exd5 {[%clk 0:00:19.1]} 21. Rfc1
{[%clk 0:02:08.9]} 21... Qb7 {[%clk 0:00:17.1]} 22. Rc7 {[%clk 0:02:06.5]} 22...
Rxc7 {[%clk 0:00:17.1]} 23. Rxc7 {[%clk 0:02:05.7]} 23... Qb6 {[%clk 0:00:17.2]}
24. Rxe7 {[%clk 0:01:36.3]} 24... Rc8 {[%clk 0:00:17.6]} 25. Qd1 {[%clk
0:01:35.7]} 25... f6 {[%clk 0:00:13.3]} 26. Qg4 {[%clk 0:01:31.1]} 26... Rc1+
{[%clk 0:00:13.2]} 27. Kh2 {[%clk 0:01:30.7]} 27... g5 {[%clk 0:00:13.8]} 28.
Qh5 {[%clk 0:01:27.5]} 28... fxe5 {[%clk 0:00:11.2]} 29. Qe8# {[%clk 0:01:25.4]}
1-0

[Event "*** Titled Tuesday Blitz"]
[Site "Chess.com"]
[Date "2020.04.14"]
[Round "8"]
[White "GukeshDommaraju"]
[Black "DrBergerBerger"]
[Result "1/2-1/2"]
[WhiteElo "2700"]
[BlackElo "2531"]
[TimeControl "180+1"]
[EndTime "11:28:19 PDT"]
[Termination "Game drawn by repetition"]

1. e4 {[%clk 0:03:00.9]} 1... e6 {[%clk 0:02:59.8]} 2. d4 {[%clk 0:02:59.9]}
2... d5 {[%clk 0:03:00.2]} 3. exd5 {[%clk 0:02:58.8]} 3... exd5 {[%clk
0:02:59.9]} 4. Nf3 {[%clk 0:02:59.2]} 4... Nf6 {[%clk 0:03:00.4]} 5. Bd3 {[%clk
0:02:59.2]} 5... c5 {[%clk 0:03:00]} 6. dxc5 {[%clk 0:02:54.5]} 6... Bxc5 {[%clk
0:02:59.3]} 7. O-O {[%clk 0:02:53.4]} 7... O-O {[%clk 0:02:59.8]} 8. Nbd2 {[%clk
0:02:53]} 8... Nc6 {[%clk 0:02:56.1]} 9. Nb3 {[%clk 0:02:51.9]} 9... Bb6 {[%clk
0:02:56]} 10. Bg5 {[%clk 0:02:46.3]} 10... h6 {[%clk 0:02:55.6]} 11. Bh4 {[%clk
0:02:46.1]} 11... g5 {[%clk 0:02:55.4]} 12. Bg3 {[%clk 0:02:45]} 12... Ne4
{[%clk 0:02:55.9]} 13. c3 {[%clk 0:02:25.3]} 13... Bg4 {[%clk 0:02:31.4]} 14.
Bxe4 {[%clk 0:01:23.5]} 14... dxe4 {[%clk 0:02:30.3]} 15. Qxd8 {[%clk
0:01:23.5]} 15... Raxd8 {[%clk 0:02:24.8]} 16. Ne5 {[%clk 0:01:24]} 16... Nxe5
{[%clk 0:02:04.7]} 17. Bxe5 {[%clk 0:01:24.9]} 17... Rd3 {[%clk 0:01:31.4]} 18.
Bd4 {[%clk 0:01:15.9]} 18... Bxd4 {[%clk 0:01:28.6]} 19. Nxd4 {[%clk 0:01:14.8]}
19... Rd2 {[%clk 0:01:21.8]} 20. Rab1 {[%clk 0:01:14.4]} 20... Be2 {[%clk
0:00:59.2]} 21. Nxe2 {[%clk 0:01:07.8]} 21... Rxe2 {[%clk 0:00:59.1]} 22. Rfe1
{[%clk 0:01:02.1]} 22... Rxe1+ {[%clk 0:00:56.4]} 23. Rxe1 {[%clk 0:01:03]}
23... Rd8 {[%clk 0:00:56.5]} 24. Kf1 {[%clk 0:00:53.4]} 24... Rd2 {[%clk
0:00:45.6]} 25. Re2 {[%clk 0:00:43.9]} 25... Rd1+ {[%clk 0:00:45.5]} 26. Re1
{[%clk 0:00:43.2]} 26... Rd2 {[%clk 0:00:46.4]} 27. Re2 {[%clk 0:00:36.1]} 27...
Rd1+ {[%clk 0:00:46.5]} 28. Re1 {[%clk 0:00:36.4]} 28... Rd2 {[%clk 0:00:47.3]}
1/2-1/2

[Event "*** Titled Tuesday Blitz"]
[Site "Chess.com"]
[Date "2020.04.14"]
[Round "8"]
[White "mapebo94"]
[Black "AlexTriapishko"]
[Result "0-1"]
[WhiteElo "1964"]
[BlackElo "2787"]
[TimeControl "180+1"]
[EndTime "11:28:19 PDT"]
[Termination "AlexTriapishko won by resignation"]

1. d4 {[%clk 0:03:00.9]} 1... Nf6 {[%clk 0:02:34]} 2. c4 {[%clk 0:03:01.8]} 2...
g6 {[%clk 0:02:33.7]} 3. Nc3 {[%clk 0:03:01.2]} 3... d5 {[%clk 0:02:33.6]} 4.
cxd5 {[%clk 0:03:00.5]} 4... Nxd5 {[%clk 0:02:34]} 5. e4 {[%clk 0:03:01]} 5...
Nxc3 {[%clk 0:02:34]} 6. bxc3 {[%clk 0:03:01.9]} 6... Bg7 {[%clk 0:02:34.9]} 7.
Nf3 {[%clk 0:03:02.2]} 7... c5 {[%clk 0:02:35]} 8. d5 {[%clk 0:03:00.1]} 8...
O-O {[%clk 0:02:30.1]} 9. Bd2 {[%clk 0:03:01]} 9... e6 {[%clk 0:02:29.6]} 10.
Bc1 {[%clk 0:03:01.9]} 10... exd5 {[%clk 0:02:28.2]} 11. exd5 {[%clk 0:02:53.9]}
11... Bxc3+ {[%clk 0:01:54.2]} 12. Bd2 {[%clk 0:02:53.4]} 12... Qf6 {[%clk
0:01:52.2]} 13. Rc1 {[%clk 0:02:49.3]} 13... Re8+ {[%clk 0:01:48.1]} 14. Be2
{[%clk 0:02:48.7]} 14... Bxd2+ {[%clk 0:01:46.7]} 15. Qxd2 {[%clk 0:02:44.9]}
15... b6 {[%clk 0:01:36.7]} 16. O-O {[%clk 0:02:43.5]} 16... Ba6 {[%clk
0:01:37.1]} 17. Rfe1 {[%clk 0:02:37.4]} 17... Bxe2 {[%clk 0:01:35.5]} 18. Rxe2
{[%clk 0:02:37.1]} 18... Nd7 {[%clk 0:01:36.1]} 19. Rce1 {[%clk 0:02:35]} 19...
Rxe2 {[%clk 0:01:26.6]} 20. Qxe2 {[%clk 0:02:30.8]} 20... Qd6 {[%clk 0:01:22.6]}
21. Rd1 {[%clk 0:02:24.4]} 21... Nf6 {[%clk 0:01:21.5]} 22. Ne1 {[%clk
0:02:11.8]} 22... Re8 {[%clk 0:01:20.2]} 23. Qf3 {[%clk 0:02:09]} 23... Qxd5
{[%clk 0:01:12]} 24. Qxd5 {[%clk 0:01:53.7]} 24... Nxd5 {[%clk 0:01:10.9]} 25.
Nf3 {[%clk 0:01:53.4]} 25... Nc3 {[%clk 0:01:07.9]} 26. Rd7 {[%clk 0:01:49.4]}
26... Nxa2 {[%clk 0:01:02.4]} 27. Rxa7 {[%clk 0:01:48.4]} 27... Nc3 {[%clk
0:01:02.8]} 28. Kf1 {[%clk 0:01:47.5]} 28... h6 {[%clk 0:01:03]} 29. Rb7 {[%clk
0:01:46.9]} 29... Nd5 {[%clk 0:01:01.5]} 30. Rd7 {[%clk 0:01:43.7]} 30... Nf6
{[%clk 0:00:59.5]} 31. Rd6 {[%clk 0:01:42.8]} 31... Re6 {[%clk 0:01:00]} 32.
Rd8+ {[%clk 0:01:42.5]} 32... Kg7 {[%clk 0:01:00]} 33. Rb8 {[%clk 0:01:38.9]}
33... Ne4 {[%clk 0:00:59.5]} 34. Ke2 {[%clk 0:01:34.9]} 34... g5 {[%clk
0:00:59.1]} 35. Ne1 {[%clk 0:01:27]} 35... b5 {[%clk 0:00:57.1]} 36. Nd3 {[%clk
0:01:25.7]} 36... c4 {[%clk 0:00:53.1]} 37. Nb4 {[%clk 0:01:23.6]} 37... Rd6
{[%clk 0:00:50.6]} 38. f3 {[%clk 0:01:20.5]} 38... Nc3+ {[%clk 0:00:49.3]} 39.
Ke3 {[%clk 0:01:17.8]} 39... Nd5+ {[%clk 0:00:49.7]} 40. Nxd5 {[%clk 0:01:16.7]}
40... Rxd5 {[%clk 0:00:50.6]} 41. Ke4 {[%clk 0:01:17.2]} 41... Rc5 {[%clk
0:00:50.6]} 42. Kd4 {[%clk 0:01:17]} 42... c3 {[%clk 0:00:50.3]} 43. Kxc5 {[%clk
0:01:13.5]} 43... c2 {[%clk 0:00:50.6]} 0-1

[Event "*** Titled Tuesday Blitz"]
[Site "Chess.com"]
[Date "2020.04.14"]
[Round "8"]
[White "keepitcool9499"]
[Black "GM-2023"]
[Result "1-0"]
[WhiteElo "2288"]
[BlackElo "2089"]
[TimeControl "180+1"]
[EndTime "11:28:19 PDT"]
[Termination "keepitcool9499 won on time"]

1. d4 {[%clk 0:03:00.9]} 1... Nf6 {[%clk 0:02:58.4]} 2. c4 {[%clk 0:03:01.1]}
2... g6 {[%clk 0:02:58.2]} 3. Nc3 {[%clk 0:03:01.5]} 3... d5 {[%clk 0:02:57.7]}
4. Nf3 {[%clk 0:03:00]} 4... Bg7 {[%clk 0:02:57.4]} 5. Bf4 {[%clk 0:02:58.1]}
5... O-O {[%clk 0:02:53.6]} 6. e3 {[%clk 0:02:58.3]} 6... c5 {[%clk 0:02:53.8]}
7. dxc5 {[%clk 0:02:57.9]} 7... Qa5 {[%clk 0:02:47.2]} 8. Qa4 {[%clk 0:02:24.1]}
8... Qxc5 {[%clk 0:02:44.8]} 9. Be2 {[%clk 0:02:12]} 9... dxc4 {[%clk
0:02:26.5]} 10. Qxc4 {[%clk 0:02:09.7]} 10... Qxc4 {[%clk 0:02:26.5]} 11. Bxc4
{[%clk 0:02:10.6]} 11... Nc6 {[%clk 0:02:21.4]} 12. O-O {[%clk 0:02:06.7]} 12...
Bf5 {[%clk 0:02:17]} 13. Rfd1 {[%clk 0:01:58.9]} 13... Rfd8 {[%clk 0:02:04.1]}
14. h3 {[%clk 0:01:49.3]} 14... Ne4 {[%clk 0:01:37.7]} 15. Nxe4 {[%clk
0:01:41.9]} 15... Bxe4 {[%clk 0:01:38.6]} 16. Ng5 {[%clk 0:01:35.9]} 16... Rxd1+
{[%clk 0:00:38.7]} 17. Rxd1 {[%clk 0:01:33.6]} 17... Bf5 {[%clk 0:00:24.5]} 18.
e4 {[%clk 0:01:17.8]} 18... Be6 {[%clk 0:00:07]} 19. Bxe6 {[%clk 0:01:14.2]}
19... fxe6 {[%clk 0:00:07.9]} 20. Nxe6 {[%clk 0:01:14.2]} 20... Rc8 {[%clk
0:00:01.3]} 21. b3 {[%clk 0:01:07.4]} 1-0

[Event "*** Titled Tuesday Blitz"]
[Site "Chess.com"]
[Date "2020.04.14"]
[Round "8"]
[White "AlleyOoper"]
[Black "Frolyanov_D"]
[Result "1/2-1/2"]
[WhiteElo "2616"]
[BlackElo "2769"]
[TimeControl "180+1"]
[EndTime "11:28:20 PDT"]
[Termination "Game drawn by agreement"]

1. d4 {[%clk 0:03:00.9]} 1... Nf6 {[%clk 0:02:56.6]} 2. Bf4 {[%clk 0:02:59.3]}
2... d5 {[%clk 0:02:53.9]} 3. e3 {[%clk 0:02:59.3]} 3... e6 {[%clk 0:02:53]} 4.
Nf3 {[%clk 0:02:59.9]} 4... c5 {[%clk 0:02:52.9]} 5. Nbd2 {[%clk 0:02:58.1]}
5... Nc6 {[%clk 0:02:53.2]} 6. c3 {[%clk 0:02:58.4]} 6... Be7 {[%clk 0:02:53.5]}
7. h3 {[%clk 0:02:57.7]} 7... b6 {[%clk 0:02:52.3]} 8. Bd3 {[%clk 0:02:57.2]}
8... Bb7 {[%clk 0:02:51.4]} 9. O-O {[%clk 0:02:56.5]} 9... O-O {[%clk
0:02:50.7]} 10. Ne5 {[%clk 0:02:55.7]} 10... Nxe5 {[%clk 0:02:50.6]} 11. Bxe5
{[%clk 0:02:55.7]} 11... Nd7 {[%clk 0:02:51]} 12. Bh2 {[%clk 0:02:54.5]} 12...
f5 {[%clk 0:02:51.5]} 13. Nf3 {[%clk 0:02:52.7]} 13... Nf6 {[%clk 0:02:31.9]}
14. c4 {[%clk 0:02:40.6]} 14... Rc8 {[%clk 0:02:28.4]} 15. cxd5 {[%clk
0:02:37.7]} 15... Bxd5 {[%clk 0:02:23.9]} 16. Ba6 {[%clk 0:02:25.9]} 16... Ra8
{[%clk 0:02:23.1]} 17. Ne5 {[%clk 0:02:21.3]} 17... Nd7 {[%clk 0:02:14.7]} 18.
Qa4 {[%clk 0:02:15.8]} 18... Nxe5 {[%clk 0:02:09.2]} 19. Bxe5 {[%clk 0:02:16.7]}
19... cxd4 {[%clk 0:02:04.2]} 20. Qxd4 {[%clk 0:02:14.3]} 20... Bc5 {[%clk
0:02:02.1]} 21. Qc3 {[%clk 0:02:14.3]} 21... Qg5 {[%clk 0:01:52.5]} 22. Bg3
{[%clk 0:01:56.1]} 22... f4 {[%clk 0:01:49.7]} 23. exf4 {[%clk 0:01:53.8]} 23...
Rxf4 {[%clk 0:01:50.2]} 24. Rad1 {[%clk 0:01:21.2]} 24... Rf3 {[%clk 0:01:44.7]}
25. Rxd5 {[%clk 0:01:15.2]} 25... Qxg3 {[%clk 0:01:26.7]} 26. Qxf3 {[%clk
0:00:18.6]} 26... Qxf3 {[%clk 0:01:25.9]} 27. gxf3 {[%clk 0:00:19]} 27... exd5
{[%clk 0:01:25.8]} 28. Rd1 {[%clk 0:00:18.6]} 28... Rd8 {[%clk 0:01:18.9]} 29.
Rxd5 {[%clk 0:00:16.5]} 29... Rxd5 {[%clk 0:01:15.8]} 30. Bc4 {[%clk 0:00:16.7]}
1/2-1/2

[Event "*** Titled Tuesday Blitz"]
[Site "Chess.com"]
[Date "2020.04.14"]
[Round "8"]
[White "Danfii"]
[Black "HrvojeZagreb"]
[Result "1-0"]
[WhiteElo "2303"]
[BlackElo "2181"]
[TimeControl "180+1"]
[EndTime "11:28:21 PDT"]
[Termination "Danfii won by resignation"]

1. e4 {[%clk 0:03:00.9]} 1... d6 {[%clk 0:02:55.5]} 2. d4 {[%clk 0:03:00.6]}
2... Nd7 {[%clk 0:02:55.2]} 3. Nc3 {[%clk 0:03:00.2]} 3... Ngf6 {[%clk 0:02:55]}
4. Nf3 {[%clk 0:03:00.2]} 4... e5 {[%clk 0:02:54.9]} 5. Bc4 {[%clk 0:03:00.1]}
5... Be7 {[%clk 0:02:53]} 6. a4 {[%clk 0:02:59.5]} 6... a5 {[%clk 0:02:50.4]} 7.
O-O {[%clk 0:02:58.6]} 7... c6 {[%clk 0:02:50.4]} 8. h3 {[%clk 0:02:58.5]} 8...
Qc7 {[%clk 0:02:50.1]} 9. Re1 {[%clk 0:02:49]} 9... h6 {[%clk 0:02:50]} 10. Be3
{[%clk 0:02:45.8]} 10... Nf8 {[%clk 0:02:49.6]} 11. Nh4 {[%clk 0:02:26.7]} 11...
Nxe4 {[%clk 0:02:42.6]} 12. Nxe4 {[%clk 0:02:22.4]} 12... Bxh4 {[%clk
0:02:42.5]} 13. dxe5 {[%clk 0:02:22.5]} 13... d5 {[%clk 0:02:11.6]} 14. Nd6+
{[%clk 0:02:22.5]} 14... Kd8 {[%clk 0:02:09]} 15. Bxd5 {[%clk 0:01:21.8]} 15...
cxd5 {[%clk 0:01:54.6]} 16. Qxd5 {[%clk 0:01:22.7]} 16... Be6 {[%clk 0:01:16.1]}
17. Qb5 {[%clk 0:01:22.5]} 17... Nd7 {[%clk 0:01:05.9]} 18. Rad1 {[%clk
0:01:10.8]} 18... Rb8 {[%clk 0:00:36.6]} 19. Nxf7+ {[%clk 0:01:01.2]} 19... Bxf7
{[%clk 0:00:32.1]} 20. Bb6 {[%clk 0:01:00.8]} 20... Be8 {[%clk 0:00:18.9]} 21.
Bxc7+ {[%clk 0:00:56.5]} 21... Kxc7 {[%clk 0:00:19.8]} 22. Qc4+ {[%clk
0:00:55.4]} 22... Kb6 {[%clk 0:00:16.8]} 23. Qxh4 {[%clk 0:00:53.5]} 1-0

[Event "*** Titled Tuesday Blitz"]
[Site "Chess.com"]
[Date "2020.04.14"]
[Round "8"]
[White "1stSecond"]
[Black "dmosesov"]
[Result "0-1"]
[WhiteElo "2699"]
[BlackElo "2550"]
[TimeControl "180+1"]
[EndTime "11:28:22 PDT"]
[Termination "dmosesov won by checkmate"]

1. Nf3 {[%clk 0:02:56.2]} 1... c5 {[%clk 0:02:59]} 2. g3 {[%clk 0:02:54]} 2...
Nc6 {[%clk 0:02:58.2]} 3. Bg2 {[%clk 0:02:53.5]} 3... g6 {[%clk 0:02:58.4]} 4.
c4 {[%clk 0:02:50.6]} 4... Bg7 {[%clk 0:02:58.4]} 5. Nc3 {[%clk 0:02:50]} 5...
e6 {[%clk 0:02:58.1]} 6. d3 {[%clk 0:02:43.6]} 6... Nge7 {[%clk 0:02:57.3]} 7.
h4 {[%clk 0:02:33.4]} 7... h6 {[%clk 0:02:54.6]} 8. Qd2 {[%clk 0:02:27.7]} 8...
d5 {[%clk 0:02:51.2]} 9. b3 {[%clk 0:02:25.8]} 9... O-O {[%clk 0:02:47.1]} 10.
Bb2 {[%clk 0:02:25.3]} 10... a6 {[%clk 0:02:37.6]} 11. Na4 {[%clk 0:02:21.3]}
11... Qd6 {[%clk 0:02:30.8]} 12. Bxg7 {[%clk 0:02:19.4]} 12... Kxg7 {[%clk
0:02:31.7]} 13. cxd5 {[%clk 0:02:13.8]} 13... Nxd5 {[%clk 0:02:29.4]} 14. Rc1
{[%clk 0:02:13]} 14... b6 {[%clk 0:02:21.3]} 15. d4 {[%clk 0:02:13.3]} 15...
cxd4 {[%clk 0:02:16.3]} 16. Nxd4 {[%clk 0:02:13.3]} 16... Ne5 {[%clk 0:02:09.2]}
17. h5 {[%clk 0:02:05]} 17... g5 {[%clk 0:02:01.6]} 18. f4 {[%clk 0:01:45.7]}
18... Ng4 {[%clk 0:01:55.4]} 19. e4 {[%clk 0:01:35.2]} 19... Nde3 {[%clk
0:01:50.2]} 20. Nf5+ {[%clk 0:01:14.2]} 20... Nxf5 {[%clk 0:01:49.1]} 21. exf5
{[%clk 0:01:14.5]} 21... Qxd2+ {[%clk 0:01:43.9]} 22. Kxd2 {[%clk 0:01:15.4]}
22... Rb8 {[%clk 0:01:44.7]} 23. Bf3 {[%clk 0:01:13.5]} 23... Rd8+ {[%clk
0:01:41]} 24. Ke2 {[%clk 0:01:12.5]} 24... exf5 {[%clk 0:01:40.9]} 25. fxg5
{[%clk 0:01:12.7]} 25... hxg5 {[%clk 0:01:40.7]} 26. Bxg4 {[%clk 0:00:45]} 26...
fxg4 {[%clk 0:01:41.6]} 27. h6+ {[%clk 0:00:44]} 27... Kh7 {[%clk 0:01:42]} 28.
Rc7 {[%clk 0:00:40.2]} 28... Be6 {[%clk 0:01:40.5]} 29. Ke3 {[%clk 0:00:35.4]}
29... Rd6 {[%clk 0:01:35.4]} 30. Ke4 {[%clk 0:00:28.3]} 30... Rbd8 {[%clk
0:01:35.3]} 31. Ke5 {[%clk 0:00:28.7]} 31... Kg6 {[%clk 0:01:24.5]} 32. Nc3
{[%clk 0:00:18.1]} 32... Bf5 {[%clk 0:01:21.1]} 33. Re7 {[%clk 0:00:13.3]} 33...
f6# {[%clk 0:01:19.8]} 0-1